Cogmind - Beta 15 @@@ ROGUE MODE // 2025.10.10 @ 11:34:47 Player: shapeshifter Result: Self-destructed Performance ------------- Evolutions (4) 2000 Regions Visited (13) 2600 Robots Destroyed (147) 735 Value Destroyed (7131) 7131 Prototype IDs (34) 680 Alien Tech Used (0) 0 Bonus (4661) 4661 TOTAL SCORE: 17807 Bonus ------- High Alert Combat Kills 740 Follower Combat Kills 823 Entered Garrisons 800 Used RIF Installer 2000 Aligned with FarCom 300 Friendly Fire -2 Cogmind --------- Core Integrity 768/850 Matter 221/300 Energy 300/300 System Corruption 1% Temperature Cool (18) Movement Treading (240) Ox1 Location -6/Factory Parts ------- > --- POWER (1) -------- Angular Momentum Engine > --- PROPULSION (4) --- Improved Heavy Treads Improved Heavy Treads > --- UTILITY (7) ------ Cargo Storage Unit Improved Medium Armor Plating Improved Heavy Armor Plating Relay Coupler [NC] (14) Relay Coupler [Sentry] (4) > --- WEAPON (3) ------- Gauss Rifle Gauss Rifle Remote Datajack > --- INVENTORY (30) --- Reinforced Deuterium Engine Angular Momentum Engine Angular Momentum Engine Angular Momentum Engine Improved Heavy Treads Improved Heavy Treads Improved Heavy Treads Improved Heavy Treads Improved Heavy Treads Cargo Storage Unit Superbattery (1500) Transport Network Coupler Improved Medium Armor Plating EM Shield Relay Coupler [Swarmer] (27) Relay Coupler [Duelist] (23) Relay Coupler [Behemoth] (10) Phase Cannon Heavy Mass Driver Peak State ------------ > --- POWER ------------ Angular Momentum Engine > --- PROPULSION ------- Improved Heavy Treads Improved Heavy Treads > --- UTILITY ---------- Coolant Injector Cargo Storage Unit Improved Medium Armor Plating Improved Medium Armor Plating Improved Heavy Armor Plating > --- WEAPON ----------- PD Laser > --- INVENTORY -------- Reinforced Deuterium Engine Angular Momentum Engine Improved Heavy Treads Improved Heavy Treads Improved Heavy Treads Improved Heavy Treads Improved Heavy Treads Cargo Storage Unit Superbattery Transport Network Coupler Improved Heavy Armor Plating EM Shield Relay Coupler [NC] Relay Coupler [NC] Relay Coupler [Swarmer] Relay Coupler [Duelist] Relay Coupler [Sentry] Relay Coupler [Behemoth] Improved Lightning Gun Phase Cannon Gauss Rifle Heavy Mass Driver [Rating: 93] Favorites ----------- Power Ion Engine Engine Ion Engine Power Core Light Nuclear Core Propulsion Wheel Treads Improved Heavy Treads Leg Biometal Leg Wheel Wheel Utility Lightpack 2.0 Device Seismic Detector Storage Lightpack 2.0 Processor Advanced Targeting Computer Hackware Relay Coupler [Sentry] Protection Hardened Heavy Armor Plating Weapon Enhanced Autogun Energy Gun Gatling Laser Energy Cannon Heavy Particle Cannon Ballistic Gun Enhanced Autogun Ballistic Cannon Assault Cannon Launcher Rocket Launcher Special Weapon Remote Datajack Impact Weapon Makeshift Hammer Build | -11 -10 -10 -10 -9 -8 -8 -8 -8 -8 -8 -7 -7 -6 ------- Run | Yrd Mat Min Exi Min Mat Gar Mat Gar Mat Gar Fac Gar Fac Slots Evolved 8 | . . . . . 4 . . . . . 2 . 2 Power . | . . . . . . . . . . . . . . Propulsion 2 | . . . . . . . . . . . 1 . 1 Utility 5 | . . . . . 4 . . . . . 1 . . Weapon 1 | . . . . . . . . . . . . . 1 Parts Attached 147 | 7 5 4 2 4 3 11 25 13 13 5 7 38 10 Power 16 | 1 1 1 . . . 1 5 1 . 1 1 3 1 Engine 13 | 1 1 1 . . . 1 5 1 . . . 2 1 Core 3 | . . . . . . . . . . 1 1 1 . Reactor . | . . . . . . . . . . . . . . Propulsion 35 | 2 2 1 1 1 2 . 6 3 2 2 1 11 1 Treads 9 | 2 2 1 1 1 . . . . . . . 1 1 Leg 9 | . . . . . . . . . . . . 9 . Wheel 17 | . . . . . 2 . 6 3 2 2 1 1 . Hover . | . . . . . . . . . . . . . . Flight . | . . . . . . . . . . . . . . Utility 56 | 2 . . 1 1 1 5 8 6 6 1 4 17 4 Device 7 | 1 . . . . . 1 . 2 . . . 3 . Storage 5 | 1 . . 1 . . 1 . . . . . 2 . Processor 4 | . . . . . 1 . . . . . 3 . . Hackware 24 | . . . . . . . 6 3 4 1 . 7 3 Protection 16 | . . . . 1 . 3 2 1 2 . 1 5 1 Artifact . | . . . . . . . . . . . . . . Weapon 40 | 2 2 2 . 2 . 5 6 3 5 1 1 7 4 Energy Gun 12 | 2 . . . . . 4 1 . 1 1 1 . 2 Energy Cannon 2 | . . 1 . . . . . . . . . 1 . Ballistic Gun 11 | . 2 . . . . . 2 1 2 . . 3 1 Ballistic Cannon 2 | . . 1 . . . . . . . . . 1 . Launcher 4 | . . . . 1 . 1 1 1 . . . . . Special Weapon 8 | . . . . . . . 2 1 2 . . 2 1 Impact Weapon 1 | . . . . 1 . . . . . . . . . Slashing Weapon . | . . . . . . . . . . . . . . Piercing Weapon . | . . . . . . . . . . . . . . Special Melee Weapon . | . . . . . . . . . . . . . . Unidentified Prototypes 5 | . . . . . . . 2 . 1 . 1 . 1 Parts Lost 41 | . 1 . . 2 . 2 3 5 1 4 1 21 1 Power 3 | . . . . . . . . . . 1 1 1 . Propulsion 15 | . . . . . . . 2 2 1 2 . 8 . Utility 14 | . . . . 1 . 2 1 1 . 1 . 8 . Weapon 9 | . 1 . . 1 . . . 2 . . . 4 1 Highest Loss Streak 10 | . 1 . . 1 . 2 1 2 1 3 1 10 1 To Critical Strikes . | . . . . . . . . . . . . . . Average Backups 17 | 3 7 7 8 8 8 12 25 25 26 26 26 16 20 Power . | . 1 . . . . . . 1 . . 1 . 3 Propulsion 1 | 1 3 4 3 2 1 . 1 1 . . . 1 5 Utility 10 | . . 1 3 4 4 8 14 15 18 18 19 11 9 Weapon 2 | . 2 1 1 1 1 3 5 2 2 2 2 1 2 Tool/Special . | . . . . . . . . . . . . . . Unused Backups 64 | . 3 4 2 . . . 10 3 3 2 3 16 18 Power 6 | . . . . . . . . 1 . . . 1 4 Propulsion 13 | . 2 . 1 . . . . . 1 1 . 3 5 Utility 32 | . . . 1 . . . 5 2 2 . 3 11 8 Weapon 12 | . 1 4 . . . . 5 . . . . 1 1 Tool/Special 1 | . . . . . . . . . . 1 . . . Average Slot Usage (%) 77 | . 100 99 100 90 63 69 70 69 66 70 77 78 65 Engine 8 | . 14 14 14 14 9 9 8 9 9 4 . 3 6 Treads 8 | . 28 28 28 28 9 . . . . . . 1 12 Leg 2 | . . . . . . . . . . . . 14 . Wheel 8 | . . . . . 8 18 17 17 13 17 17 2 . Device 5 | . 14 14 14 1 . . . 5 . 4 7 7 3 Storage 9 | . 14 14 14 14 9 9 9 9 9 9 7 6 6 Processor 1 | . . . . . . 4 . . . . 14 5 . Hackware 2 | . . . . . . . 1 1 8 4 . 3 2 Protection 10 | . . . . 7 9 10 15 10 8 7 7 13 17 Energy Gun 3 | . 14 . . . . 8 6 . . 1 . 3 3 Energy Cannon 2 | . . 10 14 1 . 4 . . . . . . 1 Ballistic Gun 6 | . 13 7 . . . . 5 7 10 16 8 8 6 Ballistic Cannon 1 | . . 10 14 2 . . . . . . . . . Launcher 1 | . . . . 12 9 4 . 1 . . . . . Special Weapon 2 | . . . . . . . 6 7 7 . 5 1 1 Peak Build Rating 93 | 7 10 16 20 20 21 62 67 67 68 67 68 75 93 Average Rating 50 | 4 8 13 17 18 19 38 63 64 64 64 66 55 84 On Entrance 39 | . 7 10 16 20 20 21 62 64 64 66 59 67 75 Naked Turns . | . . . . . . . . . . . . . . Heaviest Build 200 | 15 15 22 27 27 27 68 56 60 50 44 35 197 200 Greatest Support 150 | 40 46 46 43 46 46 20 26 20 20 20 36 75 150 Greatest Overweight (x) 9 | . . . . . 1 3 5 5 3 3 1 9 2 Average Overweight (x) 1 | . . . . . . 1 1 2 1 . . . 1 Largest Inventory Capacity 40 | 8 8 8 10 10 10 40 40 40 40 40 40 40 30 Average Capacity 26 | 7 8 8 9 10 10 22 40 40 40 40 40 21 30 Most Carried 32 | 6 8 8 10 10 10 26 32 31 32 30 29 30 30 Average Carried 20 | 3 7 7 8 10 9 15 28 26 26 26 26 18 27 Final Capacity 40 | 8 8 8 10 10 10 40 40 40 40 40 40 30 30 Final Carried 30 | 4 8 8 10 10 9 26 28 25 25 30 25 30 26 Class Distribution -------------------- 36% | Hauler-Mutant 31% | Mutant 21% | Bothacker-Mutant 5% | Hauler-Tank 4% | Bothacker-Tank Dominant Class ---------------- Mutant | -10/Materials Mutant | -10/Mines Mutant | -10/Exiles Mutant | -9/Mines Mutant | -8/Materials Mutant | -8/Garrison Hauler-Mutant | -8/Materials Bothacker-Mutant | -8/Garrison Hauler-Mutant | -8/Materials Hauler-Mutant | -8/Garrison Bothacker-Mutant | -7/Factory Bothacker-Mutant | -7/Garrison Hauler-Tank | -6/Factory Resources | -11 -10 -10 -10 -9 -8 -8 -8 -8 -8 -8 -7 -7 -6 ----------- Run | Yrd Mat Min Exi Min Mat Gar Mat Gar Mat Gar Fac Gar Fac Matter Collected 6239 | 270 130 85 . 187 . 263 1152 850 596 547 338 1602 219 Remotely . | . . . . . . . . . . . . . . Salvage Created 6155 | 139 441 77 . 28 . 527 1009 496 397 452 267 1834 488 Parts 330 | 9 23 4 . . . 34 65 51 32 25 10 65 12 Haulers Intercepted 4 | . . . . . . . 2 . 1 . . . 1 Recyclers Shooed 1 | . . . . . . . 1 . . . . . . Parts Field Recycled . | . . . . . . . . . . . . . . Retrieved Matter . | . . . . . . . . . . . . . . Parts Self-Destructed . | . . . . . . . . . . . . . . Prevented . | . . . . . . . . . . . . . . Kills | -11 -10 -10 -10 -9 -8 -8 -8 -8 -8 -8 -7 -7 -6 ------- Run | Yrd Mat Min Exi Min Mat Gar Mat Gar Mat Gar Fac Gar Fac Combat Hostiles Destroyed 123 | . 8 2 . 12 . 16 14 23 4 12 2 23 7 Guns 79 | . 8 . . . . 4 14 10 4 12 2 20 5 Cannons 2 | . . 2 . . . . . . . . . . . AOE 38 | . . . . 12 . 12 . 13 . . . 1 . Classes Destroyed 18 | 2 2 1 . 1 . 2 6 4 . . . . . Worker 10 | . . 1 . . . . 5 . 4 . . . . Builder 7 | . . . . . . . 4 . 2 . 1 . . Tunneler 4 | 2 . . . . . . . . 1 . 1 . . Hauler 4 | . . . . . . . 2 . 1 . . . 1 Recycler 5 | 1 1 . . . . . 1 . . . 2 . . Operator 2 | . . . . . . . 1 . 1 . . . . Watcher 3 | . 1 . . . . . 2 . . . . . . Swarmer 31 | . . . . . . 9 2 12 . 3 . 5 . Cutter 1 | . . . . . . . . 1 . . . . . Grunt 44 | . 8 2 . . . 7 6 3 3 2 2 8 3 Brawler 5 | . . . . . . . . 1 . . . 4 . Duelist 1 | . . . . . . . 1 . . . . . . Sentry 16 | . . . . . . 1 3 2 1 2 . 5 2 Specialist 1 | . . . . . . . . 1 . . . . . Hunter 3 | . . . . . . . 1 . . 1 . 1 . Programmer 9 | . . . . . . . . 3 . 4 . . 2 Heavy 1 | . . . . . . . 1 . . . . . . Assembled 12 | . . . . 12 . . . . . . . . . Best Kill Streak 11 | 3 5 2 . 11 . 5 3 6 5 3 2 5 3 Combat Bots Only 11 | . 5 2 . 11 . 5 2 6 2 3 2 5 3 Max Kills in Single Turn 4 | 1 1 1 . 4 . 3 1 3 1 1 1 2 1 Gunslinging 1 | . . . . . . . . . . . . 1 . Exploded 4 | . . . . 4 . 3 . 3 . . . 1 . Melee . | . . . . . . . . . . . . . . Uniques/NPCs Destroyed . | . . . . . . . . . . . . . . Combat | -11 -10 -10 -10 -9 -8 -8 -8 -8 -8 -8 -7 -7 -6 -------- Run | Yrd Mat Min Exi Min Mat Gar Mat Gar Mat Gar Fac Gar Fac Hostile Shots Fired 1086 | . 42 9 . 45 . 31 95 145 30 92 21 394 182 Missed 333 | . 12 2 . 15 . 7 24 38 7 20 3 136 69 Hits 753 | . 30 7 . 30 . 24 71 107 23 72 18 258 113 Melee 20 | . . . . 6 . . . 6 . . . 8 . Projectile 733 | . 30 7 . 24 . 24 71 101 23 72 18 250 113 AOE 13 | . . . . . . . . 12 . . . . 1 Critical Strikes 26 | . 1 1 . . . . 4 3 . 6 . 5 6 Part Disruptions 1 | . . . . . . . . . . . . . 1 Damage Taken 11139 | 14 379 92 . 641 . 536 1385 2110 366 1076 278 2704 1558 Core 1260 | 14 87 . . 55 . 97 113 197 30 45 58 482 82 Absorbed by Shields 402 | . . . . . . . . . . . . 402 . Ignored by Resistances 183 | . . . . . . . 156 12 . . . 15 . Core Remaining (%) 41 | 94 . . . 37 . . . . . 12 . 22 . Volleys Fired 667 | 5 30 7 . 7 . 36 130 89 45 87 23 172 36 Largest 2 | 2 2 2 . 1 . 2 2 2 2 2 2 2 2 Hottest 160 | 80 80 112 . 33 . 160 160 50 50 86 50 81 113 Shots Fired 982 | 10 60 14 . 8 . 46 162 97 63 134 24 296 68 Gun 828 | 10 60 2 . . . 16 144 67 51 131 24 272 51 Cannon 41 | . . 12 . . . 17 . . . . . 4 8 Launcher 54 | . . . . 8 . 13 5 16 . 3 . 9 . Special 59 | . . . . . . . 13 14 12 . . 11 9 Kinetic 635 | . 38 8 . . . . 97 67 51 113 24 207 30 Thermal 194 | . . 6 . . . 33 47 . . 18 . 69 21 Explosive 41 | . . . . 8 . . 5 16 . 3 . 9 . Electromagnetic 53 | 10 22 . . . . 13 . . . . . . 8 Robot Hit Streak 47 | 4 12 5 . 6 . 7 10 8 9 8 6 43 47 Robot Miss Streak 7 | 1 3 3 . 2 . 6 7 5 4 5 2 3 5 Penetration Max 1 | . . . . . . . . . . . . 1 . Secondary Targets 4 | . 1 . . . . . . . 1 . . 2 . Max Gunslinging Chain 1 | . 1 . . . . . . . 1 . . 1 . Autonomous 13 | . . . . . . . . . . . . . 13 Shots Hit Robots 632 | 6 38 9 . 2 . 20 108 45 36 71 18 225 54 Core Hits 299 | 4 17 4 . 23 . 30 48 31 17 22 8 81 14 Critical Kills 4 | . . . . . . . 1 . . . . 2 1 Critical Parts Destroyed 2 | . . . . . . . . . . . . 2 . Critical Strikes 11 | . . . . . . . 1 1 . . . 8 1 Burn 4 | . . . . . . . . . . . . 4 . Destroy 7 | . . . . . . . 1 1 . . . 4 1 Melee Attacks 1 | . . . . . . 1 . . . . . . . Impact 1 | . . . . . . 1 . . . . . . . Slashing . | . . . . . . . . . . . . . . Piercing . | . . . . . . . . . . . . . . Sneak Attacks . | . . . . . . . . . . . . . . Combat Hostiles . | . . . . . . . . . . . . . . Follow-up Attacks . | . . . . . . . . . . . . . . Damage Inflicted 14820 | 134 547 230 . 971 . 1184 1836 1519 531 1418 319 4652 1479 Guns 11042 | 91 484 11 . . . 269 1805 572 531 1331 319 4330 1299 Cannons 554 | . . 219 . . . 100 . . . . . 55 180 Explosions 3224 | 43 63 . . 971 . 815 31 947 . 87 . 267 . Melee . | . . . . . . . . . . . . . . Ramming . | . . . . . . . . . . . . . . Kinetic 8058 | . 317 130 . . . . 1023 572 531 1262 319 3447 457 Thermal 3263 | 43 63 100 . . . 456 782 . . 69 . 938 812 Explosive 2303 | . . . . 971 . . 31 947 . 87 . 267 . Electromagnetic 1196 | 91 167 . . . . 728 . . . . . . 210 Impact . | . . . . . . . . . . . . . . Slashing . | . . . . . . . . . . . . . . Piercing . | . . . . . . . . . . . . . . Highest Corruption 19 | . . . . 2 . 8 11 13 13 19 2 4 1 Average Corruption 7 | . . . . 2 . 5 10 11 13 15 1 2 1 Corruption Purged . | . . . . . . . . . . . . . . Corruption Blocked . | . . . . . . . . . . . . . . Effects 260 | . . . . 9 . 21 72 38 38 33 3 42 4 Message Errors 61 | . . . . 3 . 5 19 9 12 7 . 5 1 Matter Fused 67 | . . . . 2 . 4 22 7 12 5 1 13 1 Heat Flow Errors 37 | . . . . 1 . 1 12 9 3 6 1 3 1 Energy Discharges 23 | . . . . 1 . 1 3 5 3 5 . 5 . Parts Rejected 6 | . . . . . . 1 1 . 1 2 . 1 . Parts Fused 5 | . . . . . . . 2 . 1 1 . 1 . Data Loss (minor) 21 | . . . . . . 5 5 . 2 3 1 5 . Data Loss (major) 12 | . . . . 1 . 2 2 3 . 1 . 2 1 Misfires 11 | . . . . 1 . 2 2 2 1 . . 3 . Alerts 5 | . . . . . . . 1 2 . . . 2 . Misdirections 2 | . . . . . . . 1 . 1 . . . . Weapon Failures 10 | . . . . . . . 2 1 2 3 . 2 . Overload Shots . | . . . . . . . . . . . . . . Overflow Damage 126 | . 12 10 . 12 . 16 . 53 . . . 23 . Projectiles 10 | . . 10 . . . . . . . . . . . Explosions 116 | . 12 . . 12 . 16 . 53 . . . 23 . Melee . | . . . . . . . . . . . . . . Knockbacks 2 | . . 2 . . . . . . . . . . . Impact . | . . . . . . . . . . . . . . Kinetic 2 | . . 2 . . . . . . . . . . . Secondary . | . . . . . . . . . . . . . . Self-Inflicted Damage 496 | 14 27 . . 134 . 18 74 69 . 39 . 121 . Shots 17 | 1 1 . . 6 . 1 3 2 . 1 . 2 . Rammed . | . . . . . . . . . . . . . . Targets Rammed . | . . . . . . . . . . . . . . Kicked . | . . . . . . . . . . . . . . Crushed . | . . . . . . . . . . . . . . Highest Temperature 434 | 66 208 283 . 181 . 365 434 431 268 422 257 321 213 Average Temperature 104 | 28 86 131 . 76 . 107 125 127 87 102 117 45 114 Received Heat Transfer 2805 | . 216 72 . 20 . 54 342 306 153 216 162 751 513 Effects 8 | . . . . . . . 6 . . 2 . . . Shutdowns 3 | . . . . . . . 2 . . 1 . . . Energy Bleed 1 | . . . . . . . 1 . . . . . . Interference 3 | . . . . . . . 2 . . 1 . . . Short Circuit 1 | . . . . . . . 1 . . . . . . Siege Activations . | . . . . . . . . . . . . . . Martial Activations . | . . . . . . . . . . . . . . Shielding Activations . | . . . . . . . . . . . . . . Robots Disrupted . | . . . . . . . . . . . . . . Combat Hostiles . | . . . . . . . . . . . . . . Robots Corrupted 2 | . . . . . . . . . . . . . 2 Combat Hostiles 2 | . . . . . . . . . . . . . 2 Parts Fried 4 | . . . . . . 2 . . . . . . 2 Impact Corruptions . | . . . . . . . . . . . . . . Robots Melted 2 | . . . . . . . . . . . . 2 . Combat Hostiles 2 | . . . . . . . . . . . . 2 . Parts Melted 19 | . . . . . . 2 4 . . 1 . 7 5 Heat Transferred 5826 | . 100 148 . . . 898 1750 . . 111 . 2072 747 Parts Sabotaged . | . . . . . . . . . . . . . . Parts Stolen . | . . . . . . . . . . . . . . Parts Stripped . | . . . . . . . . . . . . . . Power Chain Reactions 6 | 1 2 . . . . 3 . . . . . . . Alert | -11 -10 -10 -10 -9 -8 -8 -8 -8 -8 -8 -7 -7 -6 ------- Run | Yrd Mat Min Exi Min Mat Gar Mat Gar Mat Gar Fac Gar Fac Maximum Alert Level 4 | . . . . . . 3 2 4 2 3 2 4 2 Low Security (%) 24 | 100 100 100 . 100 100 17 . . . . . . 25 Level 1 34 | . . . . . . 19 99 22 27 15 67 27 50 Level 2 19 | . . . . . . 32 . 14 72 52 32 18 24 Level 3 16 | . . . . . . 30 . 37 . 31 . 40 . Level 4 5 | . . . . . . . . 25 . . . 13 . Level 5 . | . . . . . . . . . . . . . . High Security . | . . . . . . . . . . . . . . Max Security . | . . . . . . . . . . . . . . Peak Influence 1322 | 10 96 45 . 23 . 775 400 1156 578 827 434 1322 693 Initial 693 | . . 24 . . . . 377 260 563 252 434 242 693 Average 428 | 1 31 3 . . . 483 289 793 449 579 380 759 305 Influence Increases 5593 | 15 264 58 . 38 . 915 690 1006 265 655 73 1430 184 Destroy 0b10 Robot/C 2560 | . 160 40 . . . 540 340 500 120 260 30 465 105 Destroy 0b10 Robot/NC 213 | 15 10 5 . . . . 75 . 60 . 16 28 4 Destroy Leader 322 | . 32 10 . . . 20 98 30 36 30 8 16 42 Allied During Kill 114 | . . . . . . 66 11 6 15 1 . 15 . Successful Hack 131 | . 27 . . . . . 41 . 3 20 7 22 11 Disable Machine 132 | . 30 . . . . 15 45 15 . 15 . . 12 Anti-Garrison Action 1090 | . . . . . . 150 . 100 . 200 . 640 . Destroy Structure 599 | . 5 3 . 38 . 79 65 115 1 99 . 184 10 Partial Spotted 15 | . . . . . . . . . . 15 . . . Lose Combat Pursuer 417 | . . . . . . 45 15 240 30 15 12 60 . Influence Decreases 5593 | 15 201 121 . 38 . 140 1065 250 1033 216 553 455 1506 Entered New Map 2433 | . . 39 . . . . 398 140 593 136 393 105 629 Time Decay 1824 | 15 191 82 . 25 . . 577 . 350 . 150 . 434 Lost Part 403 | . 10 . . 13 . 20 30 50 10 40 10 210 10 Lost Ally 520 | . . . . . . 120 60 60 80 40 . 140 20 Purge Threat 413 | . . . . . . . . . . . . . 413 Squads Dispatched 14 | . 3 1 . . . . 2 . 2 . 1 . 5 Investigation 5 | . 3 1 . . . . . . 1 . . . . Extermination 3 | . . . . . . . . . . . . . 3 Reinforcement 6 | . . . . . . . 2 . 1 . 1 . 2 Assault . | . . . . . . . . . . . . . . Garrison . | . . . . . . . . . . . . . . Intercept . | . . . . . . . . . . . . . . Searches Triggered . | . . . . . . . . . . . . . . Construction Impeded 1 | . . . . . . . . . 1 . . . . Haulers Reinforced . | . . . . . . . . . . . . . . Active Scanning Responses . | . . . . . . . . . . . . . . Cargo Convoy Interrupts . | . . . . . . . . . . . . . . Stealth | -11 -10 -10 -10 -9 -8 -8 -8 -8 -8 -8 -7 -7 -6 --------- Run | Yrd Mat Min Exi Min Mat Gar Mat Gar Mat Gar Fac Gar Fac Distress Signals 10 | . . . . . . 1 4 . 2 . . . 3 Communications Jammed . | . . . . . . . . . . . . . . Distress Signals . | . . . . . . . . . . . . . . Times Spotted 234 | . 9 2 . 17 . 29 40 45 21 14 5 37 15 Peak Tracking Total 15 | . 5 2 . 15 . 5 7 5 5 4 3 6 4 Tactical Retreats 19 | . . . . . . 2 1 10 1 1 1 3 . Traps | -11 -10 -10 -10 -9 -8 -8 -8 -8 -8 -8 -7 -7 -6 ------- Run | Yrd Mat Min Exi Min Mat Gar Mat Gar Mat Gar Fac Gar Fac Traps Triggered 25 | . 1 . . . . 7 2 4 . 3 2 5 1 Indirectly 1 | . . . . . . 1 . . . . . . . Trap Hack Attempts . | . . . . . . . . . . . . . . Triggered . | . . . . . . . . . . . . . . Disarmed . | . . . . . . . . . . . . . . Reprogrammed . | . . . . . . . . . . . . . . Reused . | . . . . . . . . . . . . . . Traps Extracted . | . . . . . . . . . . . . . . Installed 5 | . . 5 . . . . . . . . . . . Triggered . | . . . . . . . . . . . . . . Machines | -11 -10 -10 -10 -9 -8 -8 -8 -8 -8 -8 -7 -7 -6 ---------- Run | Yrd Mat Min Exi Min Mat Gar Mat Gar Mat Gar Fac Gar Fac Machines Disabled 26 | . 2 . . . . 5 3 3 . 5 . 7 1 Max in Single Turn 2 | . 2 . . . . 2 1 1 . 2 . 2 1 Garrison Relay 9 | . . . . . . 2 . 2 . 2 . 3 . Phase Generator 3 | . . . . . . 1 . . . 1 . 1 . Machines Repaired . | . . . . . . . . . . . . . . Machines Dismantled . | . . . . . . . . . . . . . . Machines Sabotaged . | . . . . . . . . . . . . . . Overloaded Fab Kills . | . . . . . . . . . . . . . . Hacking | -11 -10 -10 -10 -9 -8 -8 -8 -8 -8 -8 -7 -7 -6 --------- Run | Yrd Mat Min Exi Min Mat Gar Mat Gar Mat Gar Fac Gar Fac Machines Accessed 45 | . 5 1 2 1 4 1 12 . 6 3 2 3 5 Terminals 35 | . 4 . . 1 3 1 11 . 5 3 1 3 3 Fabricators 1 | . . . . . . . . . . . . . 1 Repair Stations . | . . . . . . . . . . . . . . Recycling Units 2 | . 1 . . . . . . . . . . . 1 Scanalyzers . | . . . . . . . . . . . . . . Garrison Access 4 | . . . . . 1 . 1 . 1 . 1 . . Total Hacks 104 | . 17 1 2 2 9 2 32 . 16 5 4 4 10 Successful 43 | . 5 1 2 1 2 . 14 . 8 2 2 2 4 Failed 61 | . 12 . . 1 7 2 18 . 8 3 2 2 6 Catastrophic 11 | . . . . . 2 1 5 . 1 . . 1 1 Database Lockouts . | . . . . . . . . . . . . . . Manual 44 | . 12 . 1 . 7 . 17 . 7 . . . . Terminals 91 | . 14 . . 2 7 2 31 . 15 5 3 4 8 Fabricators 1 | . . . . . . . . . . . . . 1 Repair Stations . | . . . . . . . . . . . . . . Recycling Units 4 | . 3 . . . . . . . . . . . 1 Scanalyzers . | . . . . . . . . . . . . . . Garrison Access 5 | . . . . . 2 . 1 . 1 . 1 . . Terminal Hacks 27 | . 1 1 2 1 . . 10 . 4 2 1 2 3 Record 1 | . . . 1 . . . . . . . . . . Part Schematic 1 | . . . . . . . . . . . 1 . . Robot Analysis 2 | . 1 . . . . . 1 . . . . . . Prototype ID Bank 2 | . . . . . . . 2 . . . . . . Open Door 2 | . . 1 . . . . . . . 1 . . . Level Access Points 1 | . . . . . . . . . . . . . 1 Alert Level 2 | . . . . . . . 1 . 1 . . . . Unreport Threat 1 | . . . . . . . . . . . . . 1 Dispatch Records 1 | . . . . 1 . . . . . . . . . Transport Status 1 | . . . . . . . . . 1 . . . . Registered Components 2 | . . . . . . . 2 . . . . . . Zone Layout 7 | . . . . . . . 4 . 2 . . . 1 Garrison Registry 1 | . . . . . . . . . . . . 1 . Patrol Navigation 1 | . . . . . . . . . . . . 1 . Security Stations 1 | . . . . . . . . . . 1 . . . Proto ID Catalog 1 | . . . 1 . . . . . . . . . . Fabricator Hacks . | . . . . . . . . . . . . . . Repair Station Hacks . | . . . . . . . . . . . . . . Recycling Unit Hacks 1 | . . . . . . . . . . . . . 1 Retrieve Components 1 | . . . . . . . . . . . . . 1 Scanalyzer . | . . . . . . . . . . . . . . Garrison Access Hacks 4 | . . . . . 1 . 1 . 1 . 1 . . Unlock Access 4 | . . . . . 1 . 1 . 1 . 1 . . Unauthorized Hacks 11 | . 4 . . . 1 . 3 . 3 . . . . Terminals 11 | . 4 . . . 1 . 3 . 3 . . . . Botnet 3 | . . . . . . . 2 . 1 . . . . Skim 8 | . 4 . . . 1 . 1 . 2 . . . . Fabricators . | . . . . . . . . . . . . . . Repair Stations . | . . . . . . . . . . . . . . Recycling Units . | . . . . . . . . . . . . . . Scanalyzers . | . . . . . . . . . . . . . . Garrison Access . | . . . . . . . . . . . . . . Data Cores Recovered . | . . . . . . . . . . . . . . Used . | . . . . . . . . . . . . . . Hacking Detections 36 | . 5 . . 1 3 1 11 . 5 2 1 3 4 Full Trace Events 3 | . 2 . . . . . . . . 1 . . . Feedback Events . | . . . . . . . . . . . . . . Feedback Blocked . | . . . . . . . . . . . . . . Robot Schematics Acquired . | . . . . . . . . . . . . . . Robots Built . | . . . . . . . . . . . . . . Authchips . | . . . . . . . . . . . . . . Time . | . . . . . . . . . . . . . . Total Robot Build Rating . | . . . . . . . . . . . . . . Part Schematics Acquired 1 | . . . . . . . . . . . 1 . . Parts Built . | . . . . . . . . . . . . . . Authchips . | . . . . . . . . . . . . . . Time . | . . . . . . . . . . . . . . Total Part Build Rating . | . . . . . . . . . . . . . . Parts Repaired . | . . . . . . . . . . . . . . Time . | . . . . . . . . . . . . . . Parts Recycled . | . . . . . . . . . . . . . . Recycled Matter . | . . . . . . . . . . . . . . Retrieved Matter . | . . . . . . . . . . . . . . Retrieved Components 1 | . . . . . . . . . . . . . 1 Parts Scanalyzed . | . . . . . . . . . . . . . . Part Schematics Acquired . | . . . . . . . . . . . . . . Parts Damaged . | . . . . . . . . . . . . . . Bothacking | -11 -10 -10 -10 -9 -8 -8 -8 -8 -8 -8 -7 -7 -6 ------------ Run | Yrd Mat Min Exi Min Mat Gar Mat Gar Mat Gar Fac Gar Fac Used RIF Installer 4 | . . . . . . 1 . 1 . 1 . 1 . Threat Obfuscator 1 | . . . . . . . . . . 1 . . . Robot Detection 1 | . . . . . . . . 1 . . . . . Structural Interface 1 | . . . . . . . . . . . . 1 . Robots Hacked 27 | . . . . . . . 6 4 5 . . 7 5 Non-combat 5 | . . . . . . . . . 2 . . . 3 Combat 22 | . . . . . . . 6 4 3 . . 7 2 Robot Hacks Applied 35 | . . . . . . . 8 8 5 . . 7 7 find_chute 1 | . . . . . . . . . . . . . 1 purge_threat 2 | . . . . . . . . . . . . . 2 map_route 4 | . . . . . . . . . 2 . . . 2 find_garrison 1 | . . . . . . . . . . . . . 1 link_complan 1 | . . . . . . . . 1 . . . . . overload_power 1 | . . . . . . . . 1 . . . . . amplify_resonance 6 | . . . . . . . 2 1 1 . . 2 . disable_weapons 1 | . . . . . . . . 1 . . . . . go_dormant 1 | . . . . . . . . . 1 . . . . overwrite_iff 6 | . . . . . . . 3 2 . . . 1 . streamctrl_high 1 | . . . . . . . . 1 . . . . . formatsys_high 10 | . . . . . . . 3 1 1 . . 4 1 Relay Couplers Released 35 | . . . . . . 8 . 10 . 6 . 11 . Machine Destruction 35 | . . . . . . 8 . 10 . 6 . 11 . Attached 22 | . . . . . . . 5 3 4 . . 7 3 Fabnet Peak Effective % . | . . . . . . . . . . . . . . Robots Rewired 10 | . . . . . . 3 . 4 . . . 3 . Allies Hacked . | . . . . . . . . . . . . . . Hacks Repelled . | . . . . . . . . . . . . . . Allies | -11 -10 -10 -10 -9 -8 -8 -8 -8 -8 -8 -7 -7 -6 -------- Run | Yrd Mat Min Exi Min Mat Gar Mat Gar Mat Gar Fac Gar Fac Total Allies 29 | . . . . 3 . 4 4 6 1 2 . 8 1 Largest Group 5 | . . . . 3 3 4 3 3 4 2 . 5 1 Highest-Rated Group 107 | . . . . 40 40 92 47 72 87 50 . 107 32 Highest-Rated Ally 43 | . . . . 16 16 24 16 24 24 25 . 43 32 Total Orders . | . . . . . . . . . . . . . . Ally Attacks 161 | . . . . . . 43 29 17 25 7 . 38 2 Total Damage 2895 | . . . . . . 785 345 178 563 227 . 739 58 Kills 30 | . . . . . . 11 3 2 5 1 . 8 . Allies Corrupted 2 | . . . . . . . . . . . . 2 . Allies Melted . | . . . . . . . . . . . . . . Intel | -11 -10 -10 -10 -9 -8 -8 -8 -8 -8 -8 -7 -7 -6 ------- Run | Yrd Mat Min Exi Min Mat Gar Mat Gar Mat Gar Fac Gar Fac Active Infowar (turns) 2725 | 28 559 956 554 78 1 549 . . . . . . . Seismic 2175 | 28 559 956 554 78 . . . . . . . . . Machine Analysis 550 | . . . . . 1 549 . . . . . . . Robot Analysis Total 2 | . 1 . . . . . 1 . . . . . . Derelict Logs Recovered 3 | . . 2 . 1 . . . . . . . . . Drone Launches . | . . . . . . . . . . . . . . Drone Recoveries . | . . . . . . . . . . . . . . Exploration | -11 -10 -10 -10 -9 -8 -8 -8 -8 -8 -8 -7 -7 -6 ------------- Run | Yrd Mat Min Exi Min Mat Gar Mat Gar Mat Gar Fac Gar Fac Turns Passed 12760 | 119 559 956 554 723 100 1036 1779 1159 791 657 308 2614 1405 Spaces Moved 7048 | 67 270 559 315 332 72 692 1175 718 467 383 267 1203 528 Core 41 | 23 . . . . . . . . . . . 18 . Treads 2225 | 44 270 559 315 332 31 . . . . . . 146 528 Legs 765 | . . . . . . . . . . . . 765 . Wheels 4017 | . . . . . 41 692 1175 718 467 383 267 274 . Hover . | . . . . . . . . . . . . . . Flight . | . . . . . . . . . . . . . . Fastest Speed 50 | 50 160 160 165 160 95 95 95 110 80 80 86 86 240 Average Speed 136 | 122 160 163 165 162 122 101 106 112 107 92 92 156 240 Slowest Speed 500 | 160 160 165 165 165 160 125 155 155 125 125 95 500 320 Overloaded Moves . | . . . . . . . . . . . . . . Propulsion Burnouts . | . . . . . . . . . . . . . . Robots Hopped . | . . . . . . . . . . . . . . Potential Cave-ins . | . . . . . . . . . . . . . . Cave-ins Triggered 2 | . . . . . . 1 . 1 . . . . . Exploration Rate (%) 51 | 5 59 98 68 61 8 66 90 61 36 44 7 95 17 Regions Visited 13 Branch Regions 3 Pre-discovered Areas 3 | . . 2 1 . . . . . . . . . . Known Exits Taken 4 | . . . . . 1 . 1 . 1 . 1 . . Unknown Exits Taken 5 | 1 1 1 1 1 . . . . . . . . . Scrap Searched 3 | . . 1 . 2 . . . . . . . . . Spaces Dug 81 | . . . . . . . . 24 . 20 . 37 . Terrain Destroyed 715 | 5 4 3 . 69 . 79 74 146 . 127 . 198 10 Melee . | . . . . . . . . . . . . . . Projectile 17 | . . 3 . . . . . . . . . 4 10 AOE 697 | 5 4 . . 69 . 79 74 146 . 127 . 193 . Terrain Rammed . | . . . . . . . . . . . . . . Walls Destroyed . | . . . . . . . . . . . . . . Machines Disabled . | . . . . . . . . . . . . . . Actions | -11 -10 -10 -10 -9 -8 -8 -8 -8 -8 -8 -7 -7 -6 --------- Run | Yrd Mat Min Exi Min Mat Gar Mat Gar Mat Gar Fac Gar Fac Total 9420 | 94 341 591 351 507 84 974 1576 1006 720 588 313 1659 616 Wait 902 | 6 21 . 28 162 6 114 178 76 161 59 7 63 21 Move 7037 | 66 269 558 314 331 71 691 1175 717 467 382 266 1202 528 Hop . | . . . . . . . . . . . . . . Pick Up 220 | 10 9 8 3 . 2 18 42 16 19 14 5 64 10 Fast Attach 23 | 1 . . . 3 . 5 . . . . . 14 . Attach 103 | 6 2 2 . . 3 3 16 11 12 7 7 25 9 Detach 8 | . . . . . . 3 . 2 . . . 3 . Swap 83 | . 3 2 2 2 . 6 14 13 4 12 2 20 3 Drop 131 | . 7 9 4 2 2 7 21 7 12 3 3 45 9 Fire 667 | 5 30 7 . 7 . 36 130 89 45 87 23 172 36 Melee 1 | . . . . . . 1 . . . . . . . Ram . | . . . . . . . . . . . . . . Kick . | . . . . . . . . . . . . . . Crush . | . . . . . . . . . . . . . . Escape Stasis 127 | . . . . . . 48 . 32 . 24 . 23 . Rewire 113 | . . . . . . 42 . 43 . . . 28 . Trap 5 | . . 5 . . . . . . . . . . . Miscellaneous . | . . . . . . . . . . . . . . Route ------- -11/Scrapyard -10/Materials (discovered 4 exits: [*Mat x2] / *Min / [*Sub]) -10/Mines (discovered 3 exits: [*Mat x2] / *Exi) -10/Exiles -9/Mines -8/Materials -8/Garrison (discovered 3 exits: *Fac x2 / *Mat) -8/Materials (discovered 4 exits: *Fac x3 / Gar) -8/Garrison (discovered 3 exits: *Fac x2 / *Mat) -8/Materials -8/Garrison -7/Factory -7/Garrison (discovered 4 exits: *Fac x3 / [*Fac]) -6/Factory (discovered 4 exits: *Fac x4) History --------- Turn | Location | Event 32 | -11/Scrapyard | Discovered new exit (range 15) 120 | -11/Scrapyard | Entered Materials 293 | -10/Materials | Discovered new exit (range 16) 311 | -10/Materials | Build established: Mutant 439 | -10/Materials | Discovered new exit (range 11) 587 | -10/Materials | Discovered new exit (range 10) 633 | -10/Materials | Discovered new exit (range 7) 679 | -10/Materials | Entered Mines 756 | -10/Mines | Discovered new exit (range 15) 909 | -10/Mines | Met a Derelict shopkeep closing up shop 912 | -10/Mines | Received a Rocket Launcher from a helpful Derelict 1074 | -10/Mines | Learned Materials stockpile data 1203 | -10/Mines | Learned location of Storage (-9) 1262 | -10/Mines | Discovered new exit (range 9) 1333 | -10/Mines | Found a damaged Exp. Sensor Array with a note attached 1340 | -10/Mines | Found Prototype Device 1378 | -10/Mines | Found a hidden stash of uninstalled traps 1424 | -10/Mines | Deemed a non-threat by the Exiles lab entrance 1424 | -10/Mines | Discovered new exit (range 5) 1635 | -10/Mines | Entered Exiles 1675 | -10/Exiles | Met 8R-AWN 1700 | -10/Exiles | Met EX-HEX 1777 | -10/Exiles | Met EX-DEC 1805 | -10/Exiles | Learned location of Zion (-7) 1913 | -10/Exiles | Met EX-BIN 1936 | -10/Exiles | Aligned with FarCom system 1937 | -10/Exiles | Given EX-Vault access code 1975 | -10/Exiles | Opened EX-Vault 1988 | -10/Exiles | Found Skeleton Box 1999 | -10/Exiles | Found Superbattery 2010 | -10/Exiles | Found Lightpack 2.0 2042 | -10/Exiles | Warned to stay clear of 0b10 Research branches 2048 | -10/Exiles | Exiles lab attacked by MAIN.C 2148 | -10/Exiles | Discovered new exit (range 10) 2189 | -10/Exiles | Stole three prototypes: Lightpack 2.0, Superbattery, Skeleton Box 2189 | -10/Exiles | Entered Mines 2223 | -9/Mines | Met a Derelict bent on vengeance 2247 | -9/Mines | Assembled infested the area 2270 | -9/Mines | Core integrity fell below 50% 2291 | -9/Mines | Destroyed 11 combat bots 2329 | -9/Mines | Learned Materials stockpile data 2534 | -9/Mines | A weapon hastily lodged in a ceiling crevice suddenly fell to the ground 2896 | -9/Mines | Discovered new exit (range 8) 2909 | -9/Mines | Assisted by bots powering up and referring to "LRC-V3" 2912 | -9/Mines | Entered Materials 2912 | -8/Materials | Accompanied by 3 allies 2912 | -8/Materials | Evolved 4 slots: Utility x4 2928 | -8/Materials | Identified exit to Garrison 3012 | -8/Materials | Entered Garrison 3012 | -8/Garrison | Accompanied by 3 allies 3038 | -8/Garrison | Triggered checkpoint 3066 | -8/Garrison | Garrison Relay disabled 3151 | -8/Garrison | Installed Relay Interface Framework 3230 | -8/Garrison | Triggered checkpoint 3265 | -8/Garrison | Discovered new exit (range 5) 3276 | -8/Garrison | Lost 3 allies 3382 | -8/Garrison | Triggered checkpoint 3390 | -8/Garrison | Triggered checkpoint 3446 | -8/Garrison | Discovered new exit (range 13) 3474 | -8/Garrison | Remotely autohacked Sealed Heavy Doors 3474 | -8/Garrison | Rescued a captive Derelict 3476 | -8/Garrison | Rescued a captive Derelict 3497 | -8/Garrison | Phase Generator disabled 3561 | -8/Garrison | Crushed by falling debris 3670 | -8/Garrison | Triggered checkpoint 3726 | -8/Garrison | Garrison Relay disabled 3792 | -8/Garrison | Triggered checkpoint 3901 | -8/Garrison | Build established: Hauler-Mutant 3909 | -8/Garrison | Discovered new exit (range 8) 4048 | -8/Garrison | Entered Materials 4112 | -8/Materials | System corruption reached 10% 4344 | -8/Materials | Discovered new exit (range 16) 4575 | -8/Materials | Discovered new exit (range 15) 5693 | -8/Materials | Found Prototype Device 5778 | -8/Materials | Discovered new exit (range 12) 5825 | -8/Materials | Identified exit to Garrison 5827 | -8/Materials | Entered Garrison 6030 | -8/Garrison | Crushed by falling debris 6067 | -8/Garrison | Triggered checkpoint 6144 | -8/Garrison | Garrison Relay disabled 6226 | -8/Garrison | Triggered checkpoint 6226 | -8/Garrison | Triggered checkpoint 6240 | -8/Garrison | Core integrity fell below 50% 6339 | -8/Garrison | Triggered checkpoint 6384 | -8/Garrison | Expanded RIF knowledge: Robot Detection 6396 | -8/Garrison | Garrison Relay disabled 6440 | -8/Garrison | P-60 Hacker assimilated allied G-47 Trooper 6488 | -8/Garrison | Discovered new exit (range 12) 6636 | -8/Garrison | Discovered new exit (range 10) 6687 | -8/Garrison | Triggered checkpoint 6727 | -8/Garrison | Build established: Bothacker-Mutant 6741 | -8/Garrison | Discovered new exit (range 5) 6986 | -8/Garrison | Entered Materials 6986 | -8/Materials | Accompanied by 3 allies 7240 | -8/Materials | Lost 4 allies 7492 | -8/Materials | Build established: Hauler-Mutant 7774 | -8/Materials | Identified exit to Garrison 7777 | -8/Materials | Entered Garrison 7847 | -8/Garrison | Triggered checkpoint 7879 | -8/Garrison | Garrison Relay disabled 7904 | -8/Garrison | Rescued a captive Derelict 7908 | -8/Garrison | Rescued a captive Derelict 8003 | -8/Garrison | Learned Factory security intel 8057 | -8/Garrison | Core integrity fell below 20% 8160 | -8/Garrison | Lost 3 parts (1p2n) 8165 | -8/Garrison | Triggered checkpoint 8221 | -8/Garrison | Phase Generator disabled 8234 | -8/Garrison | Discovered new exit (range 8) 8281 | -8/Garrison | Garrison Relay disabled 8359 | -8/Garrison | Triggered checkpoint 8401 | -8/Garrison | Expanded RIF knowledge: Threat Obfuscation 8434 | -8/Garrison | Entered Factory 8434 | -7/Factory | Evolved 2 slots: Propulsion x1, Utility x1 8436 | -7/Factory | FarCom data flow suspended 8597 | -7/Factory | Build established: Bothacker-Mutant 8645 | -7/Factory | Identified exit to Garrison 8742 | -7/Factory | Entered Garrison 8762 | -7/Garrison | Triggered checkpoint 8797 | -7/Garrison | Garrison Relay disabled 9048 | -7/Garrison | Triggered checkpoint 9051 | -7/Garrison | Triggered checkpoint 9060 | -7/Garrison | Triggered checkpoint 9115 | -7/Garrison | Lost 10 parts (1p4n3u2w) 9256 | -7/Garrison | Lost 3 parts (2n1u) 9431 | -7/Garrison | Discovered new exit (range 13) 9448 | -7/Garrison | Core integrity fell below 50% 9478 | -7/Garrison | Triggered checkpoint 9525 | -7/Garrison | Garrison Relay disabled 9556 | -7/Garrison | Phase Generator disabled 9583 | -7/Garrison | Discovered new exit (range 80) 9583 | -7/Garrison | Discovered new exit (range 53) 9583 | -7/Garrison | Discovered new exit (range 15) 9583 | -7/Garrison | Discovered new exit (range 22) 9872 | -7/Garrison | Triggered checkpoint 9979 | -7/Garrison | Expanded RIF knowledge: Structural Interface 10186 | -7/Garrison | Triggered checkpoint 10228 | -7/Garrison | Garrison Relay disabled 10404 | -7/Garrison | Triggered checkpoint 10594 | -7/Garrison | Lost 5 allies 11028 | -7/Garrison | Build established: Hauler-Mutant 11356 | -7/Garrison | Entered Factory 11356 | -6/Factory | Evolved 2 slots: Propulsion x1, Weapon x1 11544 | -6/Factory | Identified exit to Factory 11721 | -6/Factory | Build established: Hauler-Tank 12511 | -6/Factory | Build established: Bothacker-Tank 12561 | -6/Factory | Spotted B-75 Beast 12761 | -6/Factory | Self-destructed Last Messages --------------- 12637_ Slug penetrates Wall. 12639_ Fusion Modulator explodes. 12639_ P-60 Hacker destroyed. 12655_ Slug penetrates Wall. 12658_ Slug penetrates A-15 Conveyor. 12664_ A-15 Conveyor destroyed. 12668_ R-10 Processor collects Transport Network Coupler. 12669_ Acquired 86 matter. 12672_ R-10 Processor collects Med. Treads. 12676_ R-10 Processor collects Adv. Weight Redist. System. 12679_ R-10 Processor collects System Shield. 12683_ R-10 Processor collects Lrg. Storage Unit. 12727_ Jacked W-25 Informer... >>map_route Extracting route scan data... 12735_ W-25 Informer sends out distress signal. 12757_ Jacked Y-54 Guardian... >>find_garrison Pinpointed nearest Garrison Access: (83,54) (added to intel). 12759_ G-50 Soldier suffers critical hit (Burn). Map ----- +----------------------------------------------------+ | ??????????????????# # #???????????????? | | ??????????????????# ##########???????????????? | | ?#?? ? ? ?????????# # ! ?????????????????? | | ?# ? ? ? ? ?#???# # ?????????????????? | | ?# " " " " #???# # """ ""?????????????????? | | ?# " " " " #???# # """ ""?????????????????? | | ?# " " " " !#???# + """ ""?????????????????? | | ?# " " " " #???# # "" ""????????????????? | | ?# #???# # "" ""????????????????? | | ######+############ # ???????????????? | | " ##########???????????????? | | " #????????????????????????? | | " #????????????????????????? | | #????????????????????????? | | g #????????????????????????? | | ##########+####### #????????????????????????? | | #???# # g#????????????????????????? | | #???# """"""" # ###??????????????????????? | | #???# """"""" # #??????????????????????? | | #???# """"""" !# #??????????????????????? | | #???# """"""" # #??????????????????????? | | #???# # #??????????????????????? | | ##### # #??????????????????????? | | ## + # #??????????????????????? | | ## ## # #+######???????????????? | | ## ?# "" "" # @Y #????????? | | ## ?# ""S"" # +????????? | | ##%## """" # #????????? | | #""""""""""#############+######### ?????????? | | " #????????????????????????????????? | | " #????????????????????????????????? | | " "#???????????????????????????????? | | " "#???????????????????????????????? | | "#???????????????????????????????? | | "#???????????????????????????????? | | "#???????????????????????????????? | | ##???????????????????????????????? | | #????????????????????????????????? | | " #????????????????????????????????? | | " #????????????????????????????????? | | " #????????????????????????????????? | | """ """##????????????????????????????????? | | # # # ###?????????????????????????????????? | | +#############???????????????????????????????????? | | = #???????????????????????????????????????? | | #???????????????????????????????????????? | | """ """ #???????????????????????????????????????? | | """ """ #???????????????????????????????????????? | | """ """ ????????????????????????????????????????? | | ?????????????????????????????????????????? | +----------------------------------------------------+ Best States ------------- Heat Dissipation 70 Coolant Potential 65 Energy Generation 18 Energy Capacity 300 Matter Stores 300 Matter Capacity 300 Sight Range 16 Terrain Scan Density 10 Armor Coverage 1050 Resistance: KI 20 Evasion (%) 55 Targeting Accuracy 8 Target Analysis 5 Recoil Reduction 4 Offensive Hacking 10 Relay Coupler Types 2 Relay Coupler Value 42 Item Schematics ----------------- Cld. Cesium-ion Thruster | -7/Factory | Hacked Robot Schematics ------------------ None Fabricated ------------ Nothing Repaired ---------- Nothing Alien Tech Used ----------------- None Achievements -------------- None Challenges ------------ None Game ------ Seed ScrapSmartbombInitializer Manual? 0 Play Time 01:34:28 Cumulative 370.6 hours Start 2025.10.10 @ 09:20:35 End 2025.10.10 @ 11:34:47 Sessions 1 Manual Loads 0 Difficulty Rogue Special Mode None Game No. 487 Rogue 487 Adventurer 0 Explorer 0 Win Type - Total 11 Types 6/0/1/2/1/0/1/0/0/0 Lore% 87 Gallery% 83 Achievement% 70 Wizard Run 0 Options --------- Layout 0 ASCII 0 Keyboard 0 Movement Mouse Keybinds 0 Fullscreen 1 Font 24/Tamsyn Map View 76x50 Zoom Use 0% Tactical HUD 1 Map Filters NONE Filters NONE Steam 1 RUN: aa059eb8-9c55-4ad7-a6a1-1a30a7c33961